Workbook

Sheet AER adjustments
A1: BUSINESS HOURS ADJUSTMENTS
B2: Labour rates for 2020-21 ($June 021)
B3: Marsden Jacob | C3: CitiPower | D3: Adjustment to labour category | E3: Labour weights for fee-based services | F3: Weighted adjustment
A4: Administrative officer | B4: 92.51 | C4: 112.815907 | D4: =IF(C4<=B4,0,B4/C4-1) -> -0.1799915236 | E4: 0.15 | F4: =E4*D4 -> -0.02699872855
A5: Field officer | B5: 171.34 | C5: 185.5508307 | D5: -0.07658726556 | E5: 0.85 | F5: -0.06509917572
A6: Technical specialist | B6: 171.34 | C6: 200.8592491 | D6: -0.1469648482 | E6: 0 | F6: 0
A7: Engineer | B7: 150.33 | C7: 179.1115417 | D7: -0.1606906035 | E7: 0 | F7: 0
A8: Senior engineer | B8: 196.58 | C8: 271.8352977 | D8: -0.2768415225 | E8: 0 | F8: 0
E9: Preliminary adjustment factor | F9: =SUM(F4:F8) -> -0.09209790427
E10: Labour composition | F10: 0.9
E11: Fee-based price adjustment | F11: =F9*F10 -> -0.08288811384
A13: AFTER HOURS ADJUSTMENTS
B14: Labour rates for 2020-21 ($June 021)
B15: Marsden Jacob | C15: CitiPower | D15: Adjustment to labour category | E15: Labour weights for fee-based services | F15: Weighted adjustment
A16: Administrative officer | B16: =B4*1.75 -> 161.8925 | E16: 0.15 | F16: =E16*D16 -> 
A17: Field officer | B17: =B5*1.75 -> 299.845 | C17: 219.2112336 | D17: =IF(C17<=C5*1.75,0,C5*1.75/C17-1) -> 0 | E17: 0.85 | F17: 0
A18: Technical specialist | B18: =B6*1.75 -> 299.845 | C18: 246.3007456 | D18: =IF(C18<=C6*1.75,0,C6*1.75/C18-1) -> 0 | E18: 0 | F18: 0
A19: Engineer | B19: =B7*1.75 -> 263.0775 | C19: 239.3080123 | D19: =IF(C19<=C7*1.75,0,C7*1.75/C19-1) -> 0 | E19: 0 | F19: 0
A20: Senior engineer | B20: =B8*1.75 -> 344.015 | C20: 312.4748165 | D20: =IF(C20<=C8*1.75,0,C8*1.75/C20-1) -> 0 | E20: 0 | F20: 0
E21: Preliminary adjustment factor | F21: =SUM(F17:F20) -> 0
E22: Labour composition | F22: 0.9
E23: Fee-based price adjustment | F23: =F21*F22 -> 0

Sheet Revenue forecast
A1: CitiPower Alternative Control Services forecast revenue | B1: Revenue
B2: $ June 2021
B3: 2021/22 | C3: 2022/23 | D3: 2023/24 | E3: 2024/25 | F3: 2025/26
A4: Basic connections fixed fee | B4: =SUM('Forecast charges BH'!P6:P8,'Forecast charges BH'!P10:P12)+SUM('Forecast charges AH'!P6:P8,'Forecast charges AH'!P10:P12) -> 5934512.62 | C4: =SUM('Forecast charges BH'!Q6:Q8,'Forecast charges BH'!Q10:Q12)+SUM('Forecast charges AH'!Q6:Q8,'Forecast charges AH'!Q10:Q12) -> 5758815.296 | D4: =SUM('Forecast charges BH'!R6:R8,'Forecast charges BH'!R10:R12)+SUM('Forecast charges AH'!R6:R8,'Forecast charges AH'!R10:R12) -> 5651345.712 | E4: =SUM('Forecast charges BH'!S6:S8,'Forecast charges BH'!S10:S12)+SUM('Forecast charges AH'!S6:S8,'Forecast charges AH'!S10:S12) -> 5539578.174 | F4: =SUM('Forecast charges BH'!T6:T8,'Forecast charges BH'!T10:T12)+SUM('Forecast charges AH'!T6:T8,'Forecast charges AH'!T10:T12) -> 5464086.881
A5: Metering and network ancilliary services fixed fee | B5: ='Forecast charges BH'!P38+'Forecast charges AH'!P36-'Revenue forecast'!B4 -> 3137852.307 | C5: ='Forecast charges BH'!Q38+'Forecast charges AH'!Q36-'Revenue forecast'!C4 -> 3286776.639 | D5: ='Forecast charges BH'!R38+'Forecast charges AH'!R36-'Revenue forecast'!D4 -> 3300382.16 | E5: ='Forecast charges BH'!S38+'Forecast charges AH'!S36-'Revenue forecast'!E4 -> 3313631.39 | F5: ='Forecast charges BH'!T38+'Forecast charges AH'!T36-'Revenue forecast'!F4 -> 3326621.982
A6: Quoted services | B6: =SUM('Quoted services RIN'!E12:E16) -> 10134426.29 | C6: =SUM('Quoted services RIN'!F12:F16) -> 10134426.29 | D6: =SUM('Quoted services RIN'!G12:G16) -> 10134426.29 | E6: =SUM('Quoted services RIN'!H12:H16) -> 10134426.29 | F6: =SUM('Quoted services RIN'!I12:I16) -> 10134426.29
A7: Total | B7: =SUM(B4:B6) -> 19206791.22 | C7: =SUM(C4:C6) -> 19180018.23 | D7: =SUM(D4:D6) -> 19086154.17 | E7: =SUM(E4:E6) -> 18987635.86 | F7: =SUM(F4:F6) -> 18925135.16

Sheet Forecast charges BH
A2: Business hours | B2: Charges | J2: Volumes | P2: Revenue
B3: $ June 2021 | P3: $ June 2021
A4: Basic connection services | B4: CitiPower proposal 2021/22 | C4: AER draft decision 2021/22 | D4: 2022/23 | E4: 2023/24 | F4: 2024/25 | G4: 2025/26 | J4: 2021/22 | K4: 2022/23 | L4: 2023/24 | M4: 2024/25 | N4: 2025/26 | P4: 2021/22 | Q4: 2022/23 | R4: 2023/24 | S4: 2024/25 | T4: 2025/26
A5: New connection where we are the metering coordinator
A6: Single phase | B6: 549.0823073 | C6: =B6*(1+'AER adjustments'!$F$11) -> 503.5699105 | D6: =C6 -> 503.5699105 | E6: 503.5699105 | F6: 503.5699105 | G6: 503.5699105 | J6: 5136.495098 | K6: 4966.677144 | L6: 4862.803822 | M6: 4754.776368 | N6: 4681.811245 | P6: =J6*C6 -> 2586584.377 | Q6: 2501069.165 | R6: 2448761.686 | S6: 2394362.31 | T6: 2357619.27
A7: Multi-phase DC | B7: 656.2634308 | C7: =B7*(1+'AER adjustments'!$F$11) -> 601.8669929 | D7: 601.8669929 | E7: 601.8669929 | F7: 601.8669929 | G7: 601.8669929 | J7: 1972.649245 | K7: 1907.431377 | L7: 1867.539267 | M7: 1826.051779 | N7: 1798.029832 | P7: 1187272.469 | Q7: 1148019.987 | R7: 1124010.243 | S7: 1099040.293 | T7: 1082174.808
A8: Multi-phase CT | B8: 2744.504778 | C8: =B8*(1+'AER adjustments'!$F$11) -> 2517.017954 | D8: 2517.017954 | E8: 2517.017954 | F8: 2517.017954 | G8: 2517.017954 | J8: 612.0226405 | K8: 591.7885255 | L8: 579.4118321 | M8: 566.5401664 | N8: 557.8462406 | P8: 1540471.974 | Q8: 1489542.344 | R8: 1458389.984 | S8: 1425991.77 | T8: 1404109.003
A9: New connection where we are not the metering coordinator
A10: Single phase | B10: 528.1120875 | C10: =B10*(1+'AER adjustments'!$F$11) -> 484.3378727 | D10: =C10 -> 484.3378727 | E10: 484.3378727 | F10: 484.3378727 | G10: 484.3378727 | J10: 0 | K10: 0 | L10: 0 | M10: 0 | N10: 0 | P10: =J10*C10 -> 0 | Q10: 0 | R10: 0 | S10: 0 | T10: 0
A11: Multi-phase DC | B11: 635.293211 | C11: =B11*(1+'AER adjustments'!$F$11) -> 582.634955 | D11: 582.634955 | E11: 582.634955 | F11: 582.634955 | G11: 582.634955 | J11: 0 | K11: 0 | L11: 0 | M11: 0 | N11: 0 | P11: 0 | Q11: 0 | R11: 0 | S11: 0 | T11: 0
A12: Multi-phase CT | B12: 2342.960077 | C12: =B12*(1+'AER adjustments'!$F$11) -> 2148.756535 | D12: 2148.756535 | E12: 2148.756535 | F12: 2148.756535 | G12: 2148.756535 | J12: 0 | K12: 0 | L12: 0 | M12: 0 | N12: 0 | P12: 0 | Q12: 0 | R12: 0 | S12: 0 | T12: 0
A14: Metering services | B14: CitiPower proposal 2021/22 | C14: AER draft decision 2021/22 | D14: 2022/23 | E14: 2023/24 | F14: 2024/25 | G14: 2025/26 | J14: 2021/22 | K14: 2022/23 | L14: 2023/24 | M14: 2024/25 | N14: 2025/26 | P14: 2021/22 | Q14: 2022/23 | R14: 2023/24 | S14: 2024/25 | T14: 2025/26
A15: Meter/NMI/site investigation | B15: 388.8386079 | C15: =B15*(1+'AER adjustments'!$F$11) -> 356.6085091 | D15: =C15 -> 356.6085091 | E15: 356.6085091 | F15: 356.6085091 | G15: 356.6085091 | J15: 1883.976818 | K15: 1921.863606 | L15: 1946.581372 | M15: 1970.165682 | N15: 1992.88903 | P15: =J15*C15 -> 671842.1644 | Q15: 685352.9151 | R15: 694167.4809 | S15: 702577.8467 | T15: 710681.1859
A16: Meter accuracy test | B16: 448.65 | C16: =B16*(1+'AER adjustments'!$F$11) -> 411.4622477 | D16: 411.4622477 | E16: 411.4622477 | F16: 411.4622477 | G16: 411.4622477 | J16: 50 | K16: 50 | L16: 50 | M16: 50 | N16: 50 | P16: 20573.11239 | Q16: 20573.11239 | R16: 20573.11239 | S16: 20573.11239 | T16: 20573.11239
A17: Meter accuracy test - additional meters | B17: N/A | C17: To be proposed by CitiPower.
A18: Special reading | B18: 32.0694002 | C18: =B18*(1+'AER adjustments'!$F$11) -> 29.4112281 | D18: 29.4112281 | E18: 29.4112281 | F18: 29.4112281 | G18: 29.4112281 | J18: 450 | K18: 454.5 | L18: 459.045 | M18: 463.63545 | N18: 468.2718045 | P18: 13235.05265 | Q18: 13367.40317 | R18: 13501.07721 | S18: 13636.08798 | T18: 13772.44886
A19: Service truck visit (Metering) | B19: N/A | C19: N/A | D19: N/A | E19: N/A | F19: N/A | G19: N/A | J19: N/A | K19: N/A | L19: N/A | M19: N/A | N19: N/A | P19: N/A | Q19: N/A | R19: N/A | S19: N/A | T19: N/A
A20: Wasted truck visit (Metering) | B20: N/A | C20: N/A | D20: N/A | E20: N/A | F20: N/A | G20: N/A | J20: N/A | K20: N/A | L20: N/A | M20: N/A | N20: N/A | P20: N/A | Q20: N/A | R20: N/A | S20: N/A | T20: N/A
A21: Remote meter reconfiguration | B21: 59.59353108 | C21: =B21*(1+'AER adjustments'!$F$11) -> 54.65393569 | D21: =C21 -> 54.65393569 | E21: =D21 -> 54.65393569 | F21: =E21 -> 54.65393569 | G21: =F21 -> 54.65393569 | J21: 1443.498721 | K21: =J21 -> 1443.498721 | L21: =K21 -> 1443.498721 | M21: =L21 -> 1443.498721 | N21: =M21 -> 1443.498721 | P21: =J21*C21 -> 78892.88625 | Q21: =K21*D21 -> 78892.88625 | R21: =L21*E21 -> 78892.88625 | S21: =M21*F21 -> 78892.88625 | T21: =N21*G21 -> 78892.88625
A22: Remote energisation | B22: N/A | C22: N/A | D22: N/A | E22: N/A | F22: N/A | G22: N/A | J22: N/A | K22: N/A | L22: N/A | M22: N/A | N22: N/A | P22: N/A | Q22: N/A | R22: N/A | S22: N/A | T22: N/A
A23: Remote de‑energisation | B23: N/A | C23: N/A | D23: N/A | E23: N/A | F23: N/A | G23: N/A | J23: N/A | K23: N/A | L23: N/A | M23: N/A | N23: N/A | P23: N/A | Q23: N/A | R23: N/A | S23: N/A | T23: N/A
A24: Acces to meter data | B24: N/A | C24: N/A | D24: N/A | E24: N/A | F24: N/A | G24: N/A | J24: N/A | K24: N/A | L24: N/A | M24: N/A | N24: N/A | P24: N/A | Q24: N/A | R24: N/A | S24: N/A | T24: N/A
A25: Manual re-energisation (incl customer transfer) | B25: 38.99060575 | C25: =B25*(1+'AER adjustments'!$F$11) -> 35.75874799 | D25: =C25 -> 35.75874799 | E25: 35.75874799 | F25: 35.75874799 | G25: 35.75874799 | J25: 6469 | K25: 6533.69 | L25: 6599.0269 | M25: 6665.017169 | N25: 6731.667341 | P25: =J25*C25 -> 231323.3407 | Q25: 233636.5741 | R25: 235972.9399 | S25: 238332.6693 | T25: 240715.996
A26: Manual re-energisation (same day) | B26: 50.06683023 | C26: =B26*(1+'AER adjustments'!$F$11) -> 45.91688511 | D26: 45.91688511 | E26: 45.91688511 | F26: 45.91688511 | G26: 45.91688511 | J26: 1420 | K26: 1434.2 | L26: 1448.542 | M26: 1463.02742 | N26: 1477.657694 | P26: 65201.97685 | Q26: 65853.99662 | R26: 66512.53659 | S26: 67177.66195 | T26: 67849.43857
A27: Manual de-energisation | B27: 39.57598135 | C27: =B27*(1+'AER adjustments'!$F$11) -> 36.2956029 | D27: 36.2956029 | E27: 36.2956029 | F27: 36.2956029 | G27: 36.2956029 | J27: 4534.752579 | K27: 4580.100105 | L27: 4625.901106 | M27: 4672.160117 | N27: 4718.881718 | P27: 164591.5789 | Q27: 166237.4947 | R27: 167899.8696 | S27: 169578.8683 | T27: 171274.657
A28: Service truck visit (Servicing) | B28: 593.5478966 | C28: =B28*(1+'AER adjustments'!$F$11) -> 544.349831 | D28: N/A | E28: N/A | F28: N/A | G28: N/A | J28: N/A | K28: N/A | L28: N/A | M28: N/A | N28: N/A | P28: N/A | Q28: N/A | R28: N/A | S28: N/A | T28: N/A
A29: Wasted truck visit (Servicing) | B29: 372.034885 | C29: =B29*(1+'AER adjustments'!$F$11) -> 341.1976151 | D29: N/A | E29: N/A | F29: N/A | G29: N/A | J29: N/A | K29: N/A | L29: N/A | M29: N/A | N29: N/A | P29: N/A | Q29: N/A | R29: N/A | S29: N/A | T29: N/A
A30: Failed field visit (simple tasks) | B30: N/A | C30: =C18 -> 29.4112281 | D30: =C30 -> 29.4112281 | E30: 29.4112281 | F30: 29.4112281 | G30: 29.4112281
A31: Isolation of supply or reconnection, excluding HV (single) | B31: ='New charges calc'!$C$27 -> 345.5327696 | C31: =B31*(1+'AER adjustments'!$F$11) -> 316.89221 | D31: ='New charges calc'!D27 -> 345.5327696 | E31: ='New charges calc'!E27 -> 345.5327696 | F31: ='New charges calc'!F27 -> 345.5327696 | G31: ='New charges calc'!G27 -> 345.5327696 | J31: ='New charges calc'!C8 -> 348 | K31: ='New charges calc'!D8 -> 348 | L31: ='New charges calc'!E8 -> 348 | M31: ='New charges calc'!F8 -> 348 | N31: ='New charges calc'!G8 -> 348 | P31: =J31*C31 -> 110278.4891 | Q31: 120245.4038 | R31: 120245.4038 | S31: 120245.4038 | T31: 120245.4038
A32: Isolation of supply and reconnection after isolation, excluding HV (same day) | B32: ='New charges calc'!$C$29 -> 635.7072132 | C32: =B32*(1+'AER adjustments'!$F$11) -> 583.0146413 | D32: ='New charges calc'!D29 -> 635.7072132 | E32: ='New charges calc'!E29 -> 635.7072132 | F32: ='New charges calc'!F29 -> 635.7072132 | G32: ='New charges calc'!G29 -> 635.7072132 | J32: ='New charges calc'!C10 -> 164 | K32: ='New charges calc'!D10 -> 164 | L32: ='New charges calc'!E10 -> 164 | M32: ='New charges calc'!F10 -> 164 | N32: ='New charges calc'!G10 -> 164 | P32: 95614.40118 | Q32: 104255.983 | R32: 104255.983 | S32: 104255.983 | T32: 104255.983
A33: Standard alteration, <60 minutes | B33: ='New charges calc'!$C$28 -> 597.0938862 | C33: =B33*(1+'AER adjustments'!$F$11) -> 547.6019002 | D33: ='New charges calc'!D$28 -> 597.0938862 | E33: ='New charges calc'!E$28 -> 597.0938862 | F33: ='New charges calc'!F$28 -> 597.0938862 | G33: ='New charges calc'!G$28 -> 597.0938862 | J33: ='New charges calc'!C9 -> 1649 | K33: ='New charges calc'!D9 -> 1649 | L33: ='New charges calc'!E9 -> 1649 | M33: ='New charges calc'!F9 -> 1649 | N33: ='New charges calc'!G9 -> 1649 | P33: 902995.5334 | Q33: 984607.8183 | R33: 984607.8183 | S33: 984607.8183 | T33: 984607.8183
A34: Complex alteration, > 60 minutes | B34: ='New charges calc'!$C$30 -> 742.1293096 | C34: =B34*(1+'AER adjustments'!$F$11) -> 680.6156109 | D34: ='New charges calc'!D$30 -> 742.1293096 | E34: ='New charges calc'!E$30 -> 742.1293096 | F34: ='New charges calc'!F$30 -> 742.1293096 | G34: ='New charges calc'!G$30 -> 742.1293096 | J34: ='New charges calc'!C11 -> 495 | K34: ='New charges calc'!D11 -> 495 | L34: ='New charges calc'!E11 -> 495 | M34: ='New charges calc'!F11 -> 495 | N34: ='New charges calc'!G11 -> 495 | P34: =J34*C34 -> 336904.7274 | Q34: 367354.0083 | R34: 367354.0083 | S34: 367354.0083 | T34: 367354.0083
A35: Failed field visit (unable to perform customer requested task) - complex tasks | B35: =$B$29 -> 372.034885 | C35: =B35*(1+'AER adjustments'!$F$11) -> 341.1976151 | D35: =C35 -> 341.1976151 | E35: =D35 -> 341.1976151 | F35: =E35 -> 341.1976151 | G35: =F35 -> 341.1976151 | J35: 1013.528392 | K35: 1013.528392 | L35: 1013.528392 | M35: 1013.528392 | N35: 1013.528392 | P35: 345813.4701 | Q35: 345813.4701 | R35: 345813.4701 | S35: 345813.4701 | T35: 345813.4701
A37: Total fee-based services BH | P37: 2021/22 | Q37: 2022/23 | R37: 2023/24 | S37: 2024/25 | T37: 2025/26
A38: Fee-based service BH | P38: =SUM(P25:P35,P15:P24,P6:P12) -> 8351595.554 | Q38: =SUM(Q25:Q35,Q15:Q24,Q6:Q12) -> 8324822.562 | R38: =SUM(R25:R35,R15:R24,R6:R12) -> 8230958.499 | S38: =SUM(S25:S35,S15:S24,S6:S12) -> 8132440.191 | T38: =SUM(T25:T35,T15:T24,T6:T12) -> 8069939.489

Sheet Forecast charges AH
A2: After hours | J2: Volumes | P2: Revenue
B3: $ June 2021 | P3: $ June 2021
A4: Basic connection services | B4: CitiPower proposal 2021/22 | C4: AER draft decision 2021/22 | D4: 2022/23 | E4: 2023/24 | F4: 2024/25 | G4: 2025/26 | J4: 2021/22 | K4: 2022/23 | L4: 2023/24 | M4: 2024/25 | N4: 2025/26 | P4: 2021/22 | Q4: 2022/23 | R4: 2023/24 | S4: 2024/25 | T4: 2025/26
A5: New connection where we are the metering coordinator
A6: Single phase | B6: 608.0789849 | C6: =B6*(1-'AER adjustments'!$F$23) -> 608.0789849 | D6: =C6 -> 608.0789849 | E6: 608.0789849 | F6: 608.0789849 | G6: 608.0789849 | J6: 30.66236014 | K6: 30.66236014 | L6: 30.66236014 | M6: 30.66236014 | N6: 30.66236014 | P6: =J6*C6 -> 18645.13683 | Q6: 18645.13683 | R6: 18645.13683 | S6: 18645.13683 | T6: 18645.13683
A7: Multi-phase DC | B7: 715.2715863 | C7: =B7*(1-'AER adjustments'!$F$23) -> 715.2715863 | D7: 715.2715863 | E7: 715.2715863 | F7: 715.2715863 | G7: 715.2715863 | J7: 550.5275426 | K7: 550.5275426 | L7: 550.5275426 | M7: 550.5275426 | N7: 550.5275426 | P7: 393776.7087 | Q7: 393776.7087 | R7: 393776.7087 | S7: 393776.7087 | T7: 393776.7087
A8: Multi-phase CT | B8: 3378.512459 | C8: =B8*(1-'AER adjustments'!$F$23) -> 3378.512459 | D8: 3378.512459 | E8: 3378.512459 | F8: 3378.512459 | G8: 3378.512459 | J8: 61.49509785 | K8: 61.49509785 | L8: 61.49509785 | M8: 61.49509785 | N8: 61.49509785 | P8: 207761.9542 | Q8: 207761.9542 | R8: 207761.9542 | S8: 207761.9542 | T8: 207761.9542
A9: New connection where we are not the metering coordinator
A10: Single phase | B10: 583.4587761 | C10: =B10*(1-'AER adjustments'!$F$23) -> 583.4587761 | D10: =C10 -> 583.4587761 | E10: 583.4587761 | F10: 583.4587761 | G10: 583.4587761 | J10: 0 | K10: 0 | L10: 0 | M10: 0 | N10: 0 | P10: =J10*C10 -> 0 | Q10: 0 | R10: 0 | S10: 0 | T10: 0
A11: Multi-phase DC | B11: 690.6398996 | C11: =B11*(1-'AER adjustments'!$F$23) -> 690.6398996 | D11: 690.6398996 | E11: 690.6398996 | F11: 690.6398996 | G11: 690.6398996 | J11: 0 | K11: 0 | L11: 0 | M11: 0 | N11: 0 | P11: 0 | Q11: 0 | R11: 0 | S11: 0 | T11: 0
A12: Multi-phase CT | B12: 2660.577987 | C12: =B12*(1-'AER adjustments'!$F$23) -> 2660.577987 | D12: 2660.577987 | E12: 2660.577987 | F12: 2660.577987 | G12: 2660.577987 | J12: 0 | K12: 0 | L12: 0 | M12: 0 | N12: 0 | P12: 0 | Q12: 0 | R12: 0 | S12: 0 | T12: 0
A14: Metering and network ancillary services | B14: CitiPower proposal 2021/22 | C14: AER draft decision 2021/22 | D14: 2022/23 | E14: 2023/24 | F14: 2024/25 | G14: 2025/26 | J14: 2021/22 | K14: 2022/23 | L14: 2023/24 | M14: 2024/25 | N14: 2025/26 | P14: 2021/22 | Q14: 2022/23 | R14: 2023/24 | S14: 2024/25 | T14: 2025/26
A15: Meter/NMI/site investigation | B15: 444.1738185 | C15: =B15*(1-'AER adjustments'!$F$23) -> 444.1738185 | D15: =C15 -> 444.1738185 | E15: 444.1738185 | F15: 444.1738185 | G15: 444.1738185 | J15: 0 | K15: 0 | L15: 0 | M15: 0 | N15: 0 | P15: =J15*C15 -> 0 | Q15: =K15*D15 -> 0 | R15: =L15*E15 -> 0 | S15: =M15*F15 -> 0 | T15: =N15*G15 -> 0
A16: Meter accuracy test | B16: 514.45 | C16: =B16*(1-'AER adjustments'!$F$23) -> 514.45 | D16: 514.45 | E16: 514.45 | F16: 514.45 | G16: 514.45 | J16: 0 | K16: 0 | L16: 0 | M16: 0 | N16: 0 | P16: =J16*C16 -> 0 | Q16: =K16*D16 -> 0 | R16: =L16*E16 -> 0 | S16: =M16*F16 -> 0 | T16: =N16*G16 -> 0
A17: Special reading | B17: N/A | C17: N/A | D17: N/A | E17: N/A | F17: N/A | G17: N/A | J17: N/A | K17: N/A | L17: N/A | M17: N/A | N17: N/A | P17: N/A | Q17: N/A | R17: N/A | S17: N/A | T17: N/A
A18: Service truck visit (Metering) | B18: 715.7880942 | C18: N/A | D18: N/A | E18: N/A | F18: N/A | G18: N/A | J18: N/A | K18: N/A | L18: N/A | M18: N/A | N18: N/A | P18: N/A | Q18: N/A | R18: N/A | S18: N/A | T18: N/A
A19: Wasted truck visit (Metering) | B19: 429.7919436 | C19: N/A | D19: N/A | E19: N/A | F19: N/A | G19: N/A | J19: N/A | K19: N/A | L19: N/A | M19: N/A | N19: N/A | P19: N/A | Q19: N/A | R19: N/A | S19: N/A | T19: N/A
A20: Remote meter reconfiguration | B20: N/A | C20: =B20 -> N/A | D20: =C20 -> N/A | E20: =D20 -> N/A | F20: =E20 -> N/A | G20: =F20 -> N/A | J20: N/A | K20: N/A | L20: N/A | M20: N/A | N20: N/A | P20: N/A | Q20: N/A | R20: N/A | S20: N/A | T20: N/A
A21: Remote re‑energisation | B21: N/A | C21: N/A | D21: N/A | E21: N/A | F21: N/A | G21: N/A | J21: N/A | K21: N/A | L21: N/A | M21: N/A | N21: N/A | P21: N/A | Q21: N/A | R21: N/A | S21: N/A | T21: N/A
A22: Remote de‑energisation | B22: N/A | C22: N/A | D22: N/A | E22: N/A | F22: N/A | G22: N/A | J22: N/A | K22: N/A | L22: N/A | M22: N/A | N22: N/A | P22: N/A | Q22: N/A | R22: N/A | S22: N/A | T22: N/A
A23: Access to meter data | B23: N/A | C23: =B23 -> N/A | D23: N/A | E23: N/A | F23: N/A | G23: N/A | J23: N/A | K23: N/A | L23: N/A | M23: N/A | N23: N/A | P23: N/A | Q23: N/A | R23: N/A | S23: N/A | T23: N/A
A24: Manual re-energisation (incl customer transfer) | B24: N/A | C24: N/A | D24: =C24 -> N/A | E24: N/A | F24: N/A | G24: N/A | J24: N/A | K24: N/A | L24: N/A | M24: N/A | N24: N/A | P24: N/A | Q24: N/A | R24: N/A | S24: N/A | T24: N/A
A25: Manual re-energisation (same day) | B25: N/A | C25: N/A | D25: N/A | E25: N/A | F25: N/A | G25: N/A | J25: N/A | K25: N/A | L25: N/A | M25: N/A | N25: N/A | P25: N/A | Q25: N/A | R25: N/A | S25: N/A | T25: N/A
A26: Manual de-energisation | B26: N/A | C26: N/A | D26: N/A | E26: N/A | F26: N/A | G26: N/A | J26: N/A | K26: N/A | L26: N/A | M26: N/A | N26: N/A | P26: N/A | Q26: N/A | R26: N/A | S26: N/A | T26: N/A
A27: Service truck visit (Servicing) | B27: 715.7880942 | C27: N/A | D27: N/A | E27: N/A | F27: N/A | G27: N/A | J27: N/A | K27: N/A | L27: N/A | M27: N/A | N27: N/A | P27: N/A | Q27: N/A | R27: N/A | S27: N/A | T27: N/A
A28: Wasted truck visit (Servicing) | B28: 429.7919436 | C28: N/A | D28: N/A | E28: N/A | F28: N/A | G28: N/A | J28: N/A | K28: N/A | L28: N/A | M28: N/A | N28: N/A | P28: N/A | Q28: N/A | R28: N/A | S28: N/A | T28: N/A
A29: Isolation of supply or reconnection, excluding HV (single) | B29: ='New charges calc'!$C$57 -> 441.263857 | C29: =B29*(1-'AER adjustments'!$F$23) -> 441.263857 | D29: ='New charges calc'!D57 -> 441.263857 | E29: ='New charges calc'!E57 -> 441.263857 | F29: ='New charges calc'!F57 -> 441.263857 | G29: ='New charges calc'!G57 -> 441.263857 | J29: ='New charges calc'!C38 -> 30 | K29: ='New charges calc'!D38 -> 30 | L29: ='New charges calc'!E38 -> 30 | M29: ='New charges calc'!F38 -> 30 | N29: ='New charges calc'!G38 -> 30 | P29: =J29*C29 -> 13237.91571 | Q29: =K29*D29 -> 13237.91571 | R29: =L29*E29 -> 13237.91571 | S29: =M29*F29 -> 13237.91571 | T29: =N29*G29 -> 13237.91571
A30: Isolation of supply and reconnection after isolation, excluding HV (same day) | B30: N/A | C30: N/A | D30: N/A | E30: N/A | F30: N/A | G30: N/A | J30: N/A | K30: N/A | L30: N/A | M30: N/A | N30: N/A | P30: N/A | Q30: N/A | R30: N/A | S30: N/A | T30: N/A
A31: Standard alteration, <60 minutes | B31: ='New charges calc'!$C$58 -> 762.5208792 | C31: =B31*(1-'AER adjustments'!$F$23) -> 762.5208792 | D31: ='New charges calc'!D$58 -> 762.5208792 | E31: ='New charges calc'!E$58 -> 762.5208792 | F31: ='New charges calc'!F$58 -> 762.5208792 | G31: ='New charges calc'!G$58 -> 762.5208792 | J31: ='New charges calc'!C39 -> 72 | K31: ='New charges calc'!D39 -> 72 | L31: ='New charges calc'!E39 -> 72 | M31: ='New charges calc'!F39 -> 72 | N31: ='New charges calc'!G39 -> 72 | P31: =J31*C31 -> 54901.5033 | Q31: 54901.5033 | R31: 54901.5033 | S31: 54901.5033 | T31: 54901.5033
A32: Complex alteration, > 60 minutes | B32: ='New charges calc'!$C$60 -> 947.7388845 | C32: =B32*(1-'AER adjustments'!$F$23) -> 947.7388845 | D32: ='New charges calc'!D$60 -> 947.7388845 | E32: ='New charges calc'!E$60 -> 947.7388845 | F32: ='New charges calc'!F$60 -> 947.7388845 | G32: ='New charges calc'!G$60 -> 947.7388845 | J32: ='New charges calc'!C41 -> 21 | K32: ='New charges calc'!D41 -> 21 | L32: ='New charges calc'!E41 -> 21 | M32: ='New charges calc'!F41 -> 21 | N32: ='New charges calc'!G41 -> 21 | P32: 19902.51658 | Q32: 19902.51658 | R32: 19902.51658 | S32: 19902.51658 | T32: 19902.51658
A33: Failed field visit (unable to perform customer requested task) | B33: =$B$28 -> 429.7919436 | C33: =B33*(1-'AER adjustments'!$F$23) -> 429.7919436 | D33: =C33 -> 429.7919436 | E33: =D33 -> 429.7919436 | F33: =E33 -> 429.7919436 | G33: =F33 -> 429.7919436 | J33: 29.18537254 | K33: 29.18537254 | L33: 29.18537254 | M33: 29.18537254 | N33: 29.18537254 | P33: 12543.63799 | Q33: 12543.63799 | R33: 12543.63799 | S33: 12543.63799 | T33: 12543.63799
A35: Total fee-based services AH | P35: 2021/22 | Q35: 2022/23 | R35: 2023/24 | S35: 2024/25 | T35: 2025/26
A36: Fee-based service AH | P36: =SUM(P24:P33,P15:P23,P6:P12) -> 720769.3734 | Q36: =SUM(Q24:Q33,Q15:Q23,Q6:Q12) -> 720769.3734 | R36: =SUM(R24:R33,R15:R23,R6:R12) -> 720769.3734 | S36: =SUM(S24:S33,S15:S23,S6:S12) -> 720769.3734 | T36: =SUM(T24:T33,T15:T23,T6:T12) -> 720769.3734

Sheet New charges calc
A2: Business hours
A4: All services previously classified as service truck visits | C4: 2021/22 | D4: 2022/23 | E4: 2023/24 | F4: 2024/25 | G4: 2025/26
A5: Revenue | B5: $2021 | C5: =C12*'Forecast charges BH'!B28 -> 1576463.213 | D5: =C5 -> 1576463.213 | E5: =D5 -> 1576463.213 | F5: =E5 -> 1576463.213 | G5: =F5 -> 1576463.213
A7: Volumes break-down | C7: 2021/22 | D7: 2022/23 | E7: 2023/24 | F7: 2024/25 | G7: 2025/26
A8: Isolation of supply or reconnection, excluding HV (single) | B8: Number | C8: 348 | D8: =C8 -> 348 | E8: 348 | F8: 348 | G8: 348
A9: Standard alteration, <60 minutes | B9: Number | C9: 1649 | D9: 1649 | E9: 1649 | F9: 1649 | G9: 1649
A10: Isolation of supply and reconnection after isolation, excluding HV (same day) | B10: Number | C10: 164 | D10: 164 | E10: 164 | F10: 164 | G10: 164
A11: Complex alteration, > 60 minutes | B11: Number | C11: 495 | D11: 495 | E11: 495 | F11: 495 | G11: 495
A12: Total | B12: Number | C12: =SUM(C8:C11) -> 2656 | D12: 2656 | E12: 2656 | F12: 2656 | G12: 2656
A14: Price weighted volumes | C14: 2021/22 | D14: 2022/23 | E14: 2023/24 | F14: 2024/25 | G14: 2025/26 | J14: Price ratio
A15: Isolation of supply or reconnection, excluding HV (single) | B15: $2021 | C15: =C8*J15 -> 348 | D15: =C15 -> 348 | E15: 348 | F15: 348 | G15: 348 | J15: 1
A16: Standard alteration, <60 minutes | B16: $2021 | C16: =C9*J16 -> 2849.535283 | D16: 2849.535283 | E16: 2849.535283 | F16: 2849.535283 | G16: 2849.535283 | J16: 1.728038377
A17: Isolation of supply and reconnection after isolation, excluding HV (same day) | B17: $2021 | C17: =C10*J17 -> 301.7253128 | D17: 301.7253128 | E17: 301.7253128 | F17: 301.7253128 | G17: 301.7253128 | J17: 1.839788492
A18: Complex alteration, > 60 minutes | B18: $2021 | C18: =C11*J18 -> 1063.152444 | D18: 1063.152444 | E18: 1063.152444 | F18: 1063.152444 | G18: 1063.152444 | J18: 2.147782714
A20: Revenue per service | C20: 2021/22 | D20: 2022/23 | E20: 2023/24 | F20: 2024/25 | G20: 2025/26
A21: Isolation of supply or reconnection, excluding HV (single) | B21: $2021 | C21: =C$5/(C$15+C$16+C$17+C$18)*C15 -> 120245.4038 | D21: =C21 -> 120245.4038 | E21: 120245.4038 | F21: 120245.4038 | G21: 120245.4038
A22: Standard alteration, <60 minutes | B22: $2021 | C22: =C$5/(C$15+C$16+C$17+C$18)*C16 -> 984607.8183 | D22: 984607.8183 | E22: 984607.8183 | F22: 984607.8183 | G22: 984607.8183
A23: Isolation of supply and reconnection after isolation, excluding HV (same day) | B23: $2021 | C23: =C$5/(C$15+C$16+C$17+C$18)*C17 -> 104255.983 | D23: 104255.983 | E23: 104255.983 | F23: 104255.983 | G23: 104255.983
A24: Complex alteration, > 60 minutes | B24: $2021 | C24: =C$5/(C$15+C$16+C$17+C$18)*C18 -> 367354.0083 | D24: 367354.0083 | E24: 367354.0083 | F24: 367354.0083 | G24: 367354.0083
A26: Weighted service charges | C26: 2021/22 | D26: 2022/23 | E26: 2023/24 | F26: 2024/25 | G26: 2025/26
A27: Isolation of supply or reconnection, excluding HV (single) | B27: $2021 | C27: =C21/C8 -> 345.5327696 | D27: =C27 -> 345.5327696 | E27: 345.5327696 | F27: 345.5327696 | G27: 345.5327696
A28: Standard alteration, <60 minutes | B28: $2021 | C28: =C22/C9 -> 597.0938862 | D28: 597.0938862 | E28: 597.0938862 | F28: 597.0938862 | G28: 597.0938862
A29: Isolation of supply and reconnection after isolation, excluding HV (same day) | B29: $2021 | C29: =C23/C10 -> 635.7072132 | D29: 635.7072132 | E29: 635.7072132 | F29: 635.7072132 | G29: 635.7072132
A30: Complex alteration, > 60 minutes | B30: $2021 | C30: =C24/C11 -> 742.1293096 | D30: 742.1293096 | E30: 742.1293096 | F30: 742.1293096 | G30: 742.1293096
A32: After hours
A34: All services previously classified as service truck visits | C34: 2021/22 | D34: 2022/23 | E34: 2023/24 | F34: 2024/25 | G34: 2025/26
A35: Revenue | B35: $2021 | C35: =C42*'Forecast charges AH'!B27 -> 88041.93559 | D35: =C35 -> 88041.93559 | E35: =D35 -> 88041.93559 | F35: =E35 -> 88041.93559 | G35: =F35 -> 88041.93559
A37: Volumes break-down | C37: 2021/22 | D37: 2022/23 | E37: 2023/24 | F37: 2024/25 | G37: 2025/26
A38: Isolation of supply or reconnection, excluding HV (single) | B38: Number | C38: 30 | D38: =C38 -> 30 | E38: 30 | F38: 30 | G38: 30
A39: Standard alteration, <60 minutes | B39: Number | C39: 72 | D39: 72 | E39: 72 | F39: 72 | G39: 72
A40: Isolation of supply and reconnection after isolation, excluding HV (same day) | B40: Number | C40: N/A | D40: N/A | E40: N/A | F40: N/A | G40: N/A
A41: Complex alteration, > 60 minutes | B41: Number | C41: 21 | D41: 21 | E41: 21 | F41: 21 | G41: 21
A42: Total | B42: Number | C42: =SUM(C38:C41) -> 123 | D42: 123 | E42: 123 | F42: 123 | G42: 123
A44: Price weighted volumes | C44: 2021/22 | D44: 2022/23 | E44: 2023/24 | F44: 2024/25 | G44: 2025/26 | J44: Price ratio
A45: Isolation of supply or reconnection, excluding HV (single) | B45: $2021 | C45: =C38*J45 -> 30 | D45: =C45 -> 30 | E45: 30 | F45: 30 | G45: 30 | J45: 1
A46: Standard alteration, <60 minutes | B46: $2021 | C46: =C39*J46 -> 124.4187631 | D46: 124.4187631 | E46: 124.4187631 | F46: 124.4187631 | G46: 124.4187631 | J46: 1.728038377
A47: Isolation of supply and reconnection after isolation, excluding HV (same day) | B47: $2021 | C47: N/A | D47: N/A | E47: N/A | F47: N/A | G47: N/A | J47: N/A
A48: Complex alteration, > 60 minutes | B48: $2021 | C48: =C41*J48 -> 45.103437 | D48: 45.103437 | E48: 45.103437 | F48: 45.103437 | G48: 45.103437 | J48: 2.147782714
A50: Revenue per service | C50: 2021/22 | D50: 2022/23 | E50: 2023/24 | F50: 2024/25 | G50: 2025/26
A51: Isolation of supply or reconnection, excluding HV (single) | B51: $2021 | C51: =C$35/(C$45+C$46+C$48)*C45 -> 13237.91571 | D51: =C51 -> 13237.91571 | E51: 13237.91571 | F51: 13237.91571 | G51: 13237.91571
A52: Standard alteration, <60 minutes | B52: $2021 | C52: =C$35/(C$45+C$46+C$48)*C46 -> 54901.5033 | D52: 54901.5033 | E52: 54901.5033 | F52: 54901.5033 | G52: 54901.5033
A53: Isolation of supply and reconnection after isolation, excluding HV (same day) | B53: $2021 | C53: N/A | D53: N/A | E53: N/A | F53: N/A | G53: N/A
A54: Complex alteration, > 60 minutes | B54: $2021 | C54: =C$35/(C$45+C$46+C$48)*C48 -> 19902.51658 | D54: 19902.51658 | E54: 19902.51658 | F54: 19902.51658 | G54: 19902.51658
A56: Weighted service charges | C56: 2021/22 | D56: 2022/23 | E56: 2023/24 | F56: 2024/25 | G56: 2025/26
A57: Isolation of supply or reconnection, excluding HV (single) | B57: $2021 | C57: =C51/C38 -> 441.263857 | D57: =C57 -> 441.263857 | E57: 441.263857 | F57: 441.263857 | G57: 441.263857
A58: Standard alteration, <60 minutes | B58: $2021 | C58: =C52/C39 -> 762.5208792 | D58: 762.5208792 | E58: 762.5208792 | F58: 762.5208792 | G58: 762.5208792
A59: Isolation of supply and reconnection after isolation, excluding HV (same day) | B59: $2021 | C59: N/A | D59: N/A | E59: N/A | F59: N/A | G59: N/A
A60: Complex alteration, > 60 minutes | B60: $2021 | C60: =C54/C41 -> 947.7388845 | D60: 947.7388845 | E60: 947.7388845 | F60: 947.7388845 | G60: 947.7388845

Sheet Fee-based services RIN
B1: REGULATORY REPORTING STATEMENT
B2: CitiPower
B3: 2021-22 to 2025-26
B4: 4.3 ANCILLARY SERVICES - FEE BASED SERVICES
B6: There are TWO tables on this worksheet. The COLUMNS representing each table have been 'grouped' for easy navigation. See the Instructions sheet on how to group or ungroup data.
B8: 4.3.1 - COST METRICS FOR FEE-BASED SERVICES
B9: SERVICE SUBCATEGORY | C9: EXPENDITURE ($0's, real June 2021) | J9: VOLUMES (0's)
C10: 2019-20 | D10: 2020-21 | E10: 2021-22 | F10: 2022-23 | G10: 2023-24 | H10: 2024-25 | I10: 2025-26 | J10: 2019-20 | K10: 2020-21 | L10: 2021-22 | M10: 2022-23 | N10: 2023-24 | O10: 2024-25 | P10: 2025-26
B11: COMMON FEE-BASED SERVICES
B12: Energisation
B13: De-energisation | C13: 179266.8712 | D13: 182852.2086 | E13: =SUM('Forecast charges BH'!P27) -> 164591.5789 | F13: =SUM('Forecast charges BH'!Q27) -> 166237.4947 | G13: =SUM('Forecast charges BH'!R27) -> 167899.8696 | H13: =SUM('Forecast charges BH'!S27) -> 169578.8683 | I13: =SUM('Forecast charges BH'!T27) -> 171274.657 | J13: 4535 | K13: 4535 | L13: ='Forecast charges BH'!J27 -> 4534.752579 | M13: ='Forecast charges BH'!K27 -> 4580.100105 | N13: ='Forecast charges BH'!L27 -> 4625.901106 | O13: ='Forecast charges BH'!M27 -> 4672.160117 | P13: ='Forecast charges BH'!N27 -> 4718.881718
B14: Re-energisation | C14: 322946.448 | D14: 329405.3769 | E14: =SUM('Forecast charges BH'!P25:P26) -> 296525.3176 | F14: =SUM('Forecast charges BH'!Q25:Q26) -> 299490.5707 | G14: =SUM('Forecast charges BH'!R25:R26) -> 302485.4765 | H14: =SUM('Forecast charges BH'!S25:S26) -> 305510.3312 | I14: =SUM('Forecast charges BH'!T25:T26) -> 308565.4345 | J14: 7889 | K14: 7889 | L14: =SUM('Forecast charges BH'!J25:J26) -> 7889 | M14: =SUM('Forecast charges BH'!K25:K26) -> 7967.89 | N14: =SUM('Forecast charges BH'!L25:L26) -> 8047.5689 | O14: =SUM('Forecast charges BH'!M25:M26) -> 8128.044589 | P14: =SUM('Forecast charges BH'!N25:N26) -> 8209.325035
B15: MISCELLANEOUS FEE-BASED SERVICES
B16: Meter/NMI investigation test | C16: 695934.7772 | D16: 697521.1055 | E16: ='Forecast charges BH'!P15 -> 671842.1644 | F16: ='Forecast charges BH'!Q15 -> 685352.9151 | G16: ='Forecast charges BH'!R15 -> 694167.4809 | H16: ='Forecast charges BH'!S15 -> 702577.8467 | I16: ='Forecast charges BH'!T15 -> 710681.1859 | J16: 1802.083772 | K16: 1830.466974 | L16: ='Forecast charges BH'!J15 -> 1883.976818 | M16: ='Forecast charges BH'!K15 -> 1921.863606 | N16: ='Forecast charges BH'!L15 -> 1946.581372 | O16: ='Forecast charges BH'!M15 -> 1970.165682 | P16: ='Forecast charges BH'!N15 -> 1992.88903
B17: Meter accuracy test | C17: 21348.85572 | D17: 21566.61405 | E17: ='Forecast charges BH'!P16 -> 20573.11239 | F17: ='Forecast charges BH'!Q16 -> 20573.11239 | G17: ='Forecast charges BH'!R16 -> 20573.11239 | H17: ='Forecast charges BH'!S16 -> 20573.11239 | I17: ='Forecast charges BH'!T16 -> 20573.11239 | J17: 50 | K17: 50 | L17: ='Forecast charges BH'!J16 -> 50 | M17: ='Forecast charges BH'!K16 -> 50 | N17: ='Forecast charges BH'!L16 -> 50 | O17: ='Forecast charges BH'!M16 -> 50 | P17: ='Forecast charges BH'!N16 -> 50
B18: Special reading | C18: 14197.94044 | D18: 14342.75943 | E18: ='Forecast charges BH'!P18 -> 13235.05265 | F18: ='Forecast charges BH'!Q18 -> 13367.40317 | G18: ='Forecast charges BH'!R18 -> 13501.07721 | H18: ='Forecast charges BH'!S18 -> 13636.08798 | I18: ='Forecast charges BH'!T18 -> 13772.44886 | J18: 450 | K18: 450 | L18: ='Forecast charges BH'!J18 -> 450 | M18: ='Forecast charges BH'!K18 -> 454.5 | N18: ='Forecast charges BH'!L18 -> 459.045 | O18: ='Forecast charges BH'!M18 -> 463.63545 | P18: ='Forecast charges BH'!N18 -> 468.2718045
B19: Service truck visit | C19: 1628740 | D19: 1692500 | E19: 0 | F19: 0 | G19: 0 | H19: 0 | I19: 0 | J19: 2627 | K19: 2708 | L19: 0 | M19: 0 | N19: 0 | O19: 0 | P19: 0
B20: Wasted truck visit | C20: 379668 | D20: 383313 | E20: 0 | F20: 0 | G20: 0 | H20: 0 | I20: 0 | J20: 1043 | K20: 1043 | L20: 0 | M20: 0 | N20: 0 | O20: 0 | P20: 0
B21: Remote meter reconfiguration | C21: 85265 | D21: 85896 | E21: ='Forecast charges BH'!P21 -> 78892.88625 | F21: ='Forecast charges BH'!Q21 -> 78892.88625 | G21: ='Forecast charges BH'!R21 -> 78892.88625 | H21: ='Forecast charges BH'!S21 -> 78892.88625 | I21: ='Forecast charges BH'!T21 -> 78892.88625 | J21: 1443 | K21: 1443 | L21: ='Forecast charges BH'!J21 -> 1443.498721 | M21: ='Forecast charges BH'!K21 -> 1443.498721 | N21: ='Forecast charges BH'!L21 -> 1443.498721 | O21: ='Forecast charges BH'!M21 -> 1443.498721 | P21: ='Forecast charges BH'!N21 -> 1443.498721
B22: Remote re‑energisation | C22: 487030.8205 | D22: 496394.3463 | J22: 44054.2 | K22: 44054.2 | L22: 0 | M22: 0 | N22: 0 | O22: 0 | P22: 0
B23: Remote de‑energisation | C23: 440640.9308 | D23: 449112.5769 | J23: 39858.019 | K23: 39858.019 | L23: 0 | M23: 0 | N23: 0 | O23: 0 | P23: 0
B24: Isolation of supply or reconnection, excluding HV (single) | E24: ='Forecast charges BH'!P31+'Forecast charges AH'!P29 -> 123516.4048 | F24: ='Forecast charges BH'!Q31+'Forecast charges AH'!Q29 -> 133483.3195 | G24: ='Forecast charges BH'!R31+'Forecast charges AH'!R29 -> 133483.3195 | H24: ='Forecast charges BH'!S31+'Forecast charges AH'!S29 -> 133483.3195 | I24: ='Forecast charges BH'!T31+'Forecast charges AH'!T29 -> 133483.3195 | L24: ='Forecast charges BH'!J31+'Forecast charges AH'!J29 -> 378 | M24: ='Forecast charges BH'!K31+'Forecast charges AH'!K29 -> 378 | N24: ='Forecast charges BH'!L31+'Forecast charges AH'!L29 -> 378 | O24: ='Forecast charges BH'!M31+'Forecast charges AH'!M29 -> 378 | P24: ='Forecast charges BH'!N31+'Forecast charges AH'!N29 -> 378
B25: Isolation of supply and reconnection after isolation, excluding HV (same day) | E25: ='Forecast charges BH'!P32 -> 95614.40118 | F25: ='Forecast charges BH'!Q32 -> 104255.983 | G25: ='Forecast charges BH'!R32 -> 104255.983 | H25: ='Forecast charges BH'!S32 -> 104255.983 | I25: ='Forecast charges BH'!T32 -> 104255.983 | L25: ='Forecast charges BH'!J32 -> 164 | M25: ='Forecast charges BH'!K32 -> 164 | N25: ='Forecast charges BH'!L32 -> 164 | O25: ='Forecast charges BH'!M32 -> 164 | P25: ='Forecast charges BH'!N32 -> 164
B26: Standard alteration, <60 minutes | E26: ='Forecast charges BH'!P33+'Forecast charges AH'!P31 -> 957897.0367 | F26: ='Forecast charges BH'!Q33+'Forecast charges AH'!Q31 -> 1039509.322 | G26: ='Forecast charges BH'!R33+'Forecast charges AH'!R31 -> 1039509.322 | H26: ='Forecast charges BH'!S33+'Forecast charges AH'!S31 -> 1039509.322 | I26: ='Forecast charges BH'!T33+'Forecast charges AH'!T31 -> 1039509.322 | L26: ='Forecast charges BH'!J33+'Forecast charges AH'!J31 -> 1721 | M26: ='Forecast charges BH'!K33+'Forecast charges AH'!K31 -> 1721 | N26: ='Forecast charges BH'!L33+'Forecast charges AH'!L31 -> 1721 | O26: ='Forecast charges BH'!M33+'Forecast charges AH'!M31 -> 1721 | P26: ='Forecast charges BH'!N33+'Forecast charges AH'!N31 -> 1721
B27: Complex alteration, > 60 minutes | E27: ='Forecast charges BH'!P34+'Forecast charges AH'!P32 -> 356807.244 | F27: ='Forecast charges BH'!Q34+'Forecast charges AH'!Q32 -> 387256.5248 | G27: ='Forecast charges BH'!R34+'Forecast charges AH'!R32 -> 387256.5248 | H27: ='Forecast charges BH'!S34+'Forecast charges AH'!S32 -> 387256.5248 | I27: ='Forecast charges BH'!T34+'Forecast charges AH'!T32 -> 387256.5248 | L27: ='Forecast charges BH'!J34+'Forecast charges AH'!J32 -> 516 | M27: ='Forecast charges BH'!K34+'Forecast charges AH'!K32 -> 516 | N27: ='Forecast charges BH'!L34+'Forecast charges AH'!L32 -> 516 | O27: ='Forecast charges BH'!M34+'Forecast charges AH'!M32 -> 516 | P27: ='Forecast charges BH'!N34+'Forecast charges AH'!N32 -> 516
B28: Failed field visit (unable to perform customer requested task) | E28: ='Forecast charges AH'!P33+'Forecast charges BH'!P35 -> 358357.1081 | F28: ='Forecast charges AH'!Q33+'Forecast charges BH'!Q35 -> 358357.1081 | G28: ='Forecast charges AH'!R33+'Forecast charges BH'!R35 -> 358357.1081 | H28: ='Forecast charges AH'!S33+'Forecast charges BH'!S35 -> 358357.1081 | I28: ='Forecast charges AH'!T33+'Forecast charges BH'!T35 -> 358357.1081 | L28: ='Forecast charges BH'!J35+'Forecast charges AH'!J33 -> 1042.713764 | M28: ='Forecast charges BH'!K35+'Forecast charges AH'!K33 -> 1042.713764 | N28: ='Forecast charges BH'!L35+'Forecast charges AH'!L33 -> 1042.713764 | O28: ='Forecast charges BH'!M35+'Forecast charges AH'!M33 -> 1042.713764 | P28: ='Forecast charges BH'!N35+'Forecast charges AH'!N33 -> 1042.713764

Sheet Quoted services RIN
B1: REGULATORY REPORTING STATEMENT
B2: CitiPower
B3: 2021-22 to 2025-26
B4: 4.4 ANCILLARY SERVICES - QUOTED SERVICES
B6: There are TWO tables on this worksheet. The COLUMNS representing each table have been 'grouped' for easy navigation. See the Instructions sheet on how to group or ungroup data.
B8: 4.4.1 - COST METRICS FOR QUOTED SERVICES
B9: SERVICE SUBCATEGORY | C9: EXPENDITURE ($0's, real June 2021) | J9: VOLUMES (0's)
C10: 2019-20 | D10: 2020-21 | E10: 2021-22 | F10: 2022-23 | G10: 2023-24 | H10: 2024-25 | I10: 2025-26 | J10: 2019-20 | K10: 2020-21 | L10: 2021-22 | M10: 2022-23 | N10: 2023-24 | O10: 2024-25 | P10: 2025-26
B11: Audit design and construction | C11: 4587.68402 | D11: 4755.641426 | E11: 4755.641426 | F11: 4755.641426 | G11: 4755.641426 | H11: 4755.641426 | I11: 4755.641426 | J11: 2 | K11: 2 | L11: 2 | M11: 2 | N11: 2 | O11: 2 | P11: 2
B12: Specification and design enquiry | C12: 7272376.683 | D12: 7538622.029 | E12: 7538622.029 | F12: 7538622.029 | G12: 7538622.029 | H12: 7538622.029 | I12: 7538622.029 | J12: 1015 | K12: 1015 | L12: 1015 | M12: 1015 | N12: 1015 | O12: 1015 | P12: 1015
B13: High load escorts–surveying and lifting overhead lines | C13: 77811.73545 | D13: 80660.46199 | E13: 80660.46199 | F13: 80660.46199 | G13: 80660.46199 | H13: 80660.46199 | I13: 80660.46199 | J13: 0 | K13: 0 | L13: 9 | M13: 9 | N13: 9 | O13: 9 | P13: 9
B14: No-go zone safety-related services | C14: 1529467.067 | D14: 1585461.621 | E14: 1585461.621 | F14: 1585461.621 | G14: 1585461.621 | H14: 1585461.621 | I14: 1585461.621 | J14: 836 | K14: 836 | L14: 836 | M14: 836 | N14: 836 | O14: 836 | P14: 836
B15: Elective undergrounding | C15: 830696.3827 | D15: 861108.5926 | E15: 861108.5926 | F15: 861108.5926 | G15: 861108.5926 | H15: 861108.5926 | I15: 861108.5926 | J15: 139 | K15: 139 | L15: 139 | M15: 139 | N15: 139 | O15: 139 | P15: 139
B16: Reserve feeder maintenance | C16: 66151.74035 | D16: 68573.58864 | E16: 68573.58864 | F16: 68573.58864 | G16: 68573.58864 | H16: 68573.58864 | I16: 68573.58864 | J16: 17 | K16: 17 | L16: 17 | M16: 17 | N16: 17 | O16: 17 | P16: 17
